bitfinex/quotes_ETHUSD_20260217
["timestamp","ask_amount","ask_price","bid_price","bid_amount"]
[1771342951096,0.4625088,1954.1,1953.2,0.554]
[1771342952421,1.27942681,1954.0,1953.2,1.83394286]
[1771342952920,1.27920274,1954.4,1953.3,0.47045694]
[1771342953326,1.74171154,1954.4,1953.2,1.83394286]
[1771342953648,0.4625088,1954.3,1953.2,1.83394286]
[1771342954436,1.27929587,1954.2,1953.2,1.83394286]
[1771342954931,1.27929587,1954.2,1953.1,1.27996789]
[1771342954932,0.4625088,1954.1,1953.1,1.27996789]
[1771342955107,0.4625088,1954.1,1953.3,0.554]
[1771342955300,8.71556027,1954.2,1953.0,0.0011]
[1771342955301,0.4625088,1954.0,1953.0,0.0011]
[1771342955505,8.71556027,1954.2,1953.0,0.0011]
[1771342955506,0.4625088,1953.8,1953.0,0.0011]
[1771342955706,0.635,1953.7,1953.0,0.0011]
[1771342955999,27.582766,1953.5,1953.0,0.0011]
[1771342956202,7.2637732,1953.6,1952.8,0.0011]
[1771342956203,0.4625088,1953.4,1952.8,0.0011]
[1771342956404,1.27988532,1953.3,1952.8,0.0011]
[1771342958553,5.11954128,1953.4,1952.8,0.0011]
[1771342958707,5.11916182,1953.6,1952.8,0.0011]
[1771342958708,1.27968877,1953.6,1952.8,0.0011]
[1771342960307,1.27968877,1953.6,1952.9,0.0011]
[1771342960518,0.001,1953.2,1952.9,0.0011]
[1771342962441,0.001,1953.2,1952.6,2.28668298]
[1771342962645,0.001,1953.2,1952.8,1.28021302]
[1771342963134,0.001,1953.2,1952.6,1.81620281]
[1771342963907,0.001,1953.2,1952.6,2.28665975]
[1771342964710,5.11849311,1953.9,1952.7,0.49980398]
[1771342964911,5.11785858,1954.0,1952.7,0.49980398]
[1771342965108,1.27929587,1954.2,1952.7,0.49980398]
[1771342965440,1.27929587,1954.2,1952.9,0.49980398]
[1771342965643,1.27929587,1954.2,1953.1,0.49980398]
[1771342965816,1.27929587,1954.2,1953.2,0.554]
[1771342966944,1.27909951,1954.5,1953.3,1.7796893]
[1771342967118,0.45775262,1954.4,1953.3,1.27988532]
[1771342967940,0.45775262,1954.4,1953.4,0.553]
[1771342968137,1.27909951,1954.5,1953.4,0.553]
[1771342968488,1.73685213,1954.5,1953.4,0.553]
[1771342968944,1.73685213,1954.5,1953.5,1.27975428]
[1771342969517,0.45775262,1954.4,1953.4,0.553]
[1771342969751,0.45775262,1954.4,1953.2,1.27991131]
[1771342969752,7.82881354,1954.3,1953.5,0.554]
[1771342969945,8.46481354,1954.3,1953.5,0.554]
[1771342970255,1.09375262,1954.3,1953.5,0.554]
[1771342970559,0.636,1954.4,1953.5,0.554]
[1771342971058,1.27923041,1954.3,1953.5,1.83375334]
[1771342971966,1.27923041,1954.3,1953.5,0.554]
[1771342973350,1.27923041,1954.3,1953.5,1.83373093]
[1771342973550,0.001,1954.2,1953.5,1.83373093]
[1771342975283,0.001,1954.2,1953.5,2.32882934]
[1771342976007,0.001,1954.2,1953.5,1.83373093]
[1771342978327,0.635,1954.8,1953.6,0.49509841]
[1771342978472,1.27986223,1954.9,1953.9,0.49509841]
[1771342978806,0.45267091,1954.8,1954.0,0.553]
[1771342978976,1.27986223,1954.9,1954.0,0.553]
[1771342979501,0.001,1954.9,1954.0,1.04809841]
[1771342979680,1.27983979,1954.9,1954.0,1.04809841]
[1771342980417,0.001,1954.9,1954.1,1.27936134]
[1771342980594,0.45367091,1954.9,1954.0,1.83238495]
[1771342981529,0.001,1954.9,1954.0,1.83238495]
[1771342981684,0.001,1954.9,1954.1,0.49509841]
[1771342981884,0.001,1954.9,1954.0,1.83238495]
[1771342982286,0.45367091,1954.9,1954.1,0.553]
[1771342982885,0.45367091,1954.9,1954.0,0.553]
[1771342984619,1.73157412,1954.8,1954.0,0.553]
[1771342984814,0.45267091,1954.7,1953.3,1.27988532]
[1771342985113,0.45267091,1954.7,1953.5,0.552]
[1771342985709,0.45267091,1954.7,1953.5,1.04709841]
[1771342986085,1.73257412,1954.8,1953.6,0.49509841]
[1771342986797,0.45267091,1954.7,1953.7,1.27962327]
[1771342987002,0.45267091,1954.6,1953.6,1.27964023]
[1771342987411,0.45267091,1954.6,1953.5,1.83170678]
[1771342988788,1.27909951,1954.5,1953.5,1.83170678]
[1771342989096,1.27909951,1954.5,1953.5,2.32680519]
[1771342990017,0.45267091,1954.4,1953.5,0.552]
[1771342990319,0.45267091,1954.4,1953.5,1.83174878]
[1771342990616,1.27909951,1954.5,1953.5,2.32684719]
[1771342990785,5.11639805,1954.6,1953.6,0.49509841]
[1771342991615,1.73170498,1954.7,1953.6,0.49509841]
[1771342991616,1.27900103,1954.7,1953.6,0.49509841]
[1771342992922,0.001,1954.8,1953.8,0.49509841]
[1771342993116,0.001,1954.8,1954.0,0.49509841]
[1771342993415,0.001,1954.8,1954.0,1.41709841]
[1771342993590,0.001,1954.8,1954.0,0.922]
[1771342995003,0.001,1954.8,1954.0,0.553]
[1771342995004,0.47643175,1954.8,1954.0,0.553]
[1771342995598,0.001,1954.8,1954.0,0.553]
[1771342997120,0.001,1954.8,1954.1,1.27936134]
[1771342998402,0.001,1954.8,1954.2,0.4702981]
[1771342998606,0.001,1954.8,1954.1,1.27936134]
[1771342998607,1.27838003,1955.6,1954.3,0.4702981]
[1771342999125,7.37106092,1956.0,1954.7,0.4702981]
[1771342999126,0.47543175,1956.0,1954.7,0.4702981]
[1771342999328,7.37106092,1956.3,1954.6,1.27903407]
[1771342999329,1.27802459,1956.2,1954.9,0.4702981]
[1771342999833,1.75345634,1956.2,1954.9,0.4702981]
[1771343000350,1.75345634,1956.2,1955.0,0.552]
[1771343001195,1.75345634,1956.2,1955.1,1.27870697]
[1771343001601,2.38645634,1956.2,1955.1,1.27870697]
[1771343002518,1.75345634,1956.2,1955.1,1.27870697]
[1771343003735,0.47543175,1956.1,1955.0,1.83072525]
[1771343005315,24.78527775,1956.0,1955.0,0.552]
[1771343005513,1.27831466,1955.7,1955.0,0.552]
[1771343005822,1.27831466,1955.7,1954.6,1.74928247]
[1771343005823,1.75374641,1955.7,1954.6,1.74928247]
[1771343006036,0.47543175,1955.6,1954.7,0.552]
[1771343006800,0.47543175,1955.6,1954.3,0.4702981]
[1771343007037,0.47543175,1955.4,1954.4,0.552]
[1771343007626,0.47543175,1955.4,1954.0,0.4702981]
[1771343007627,0.47543175,1955.1,1954.1,1.27932158]
[1771343007825,0.47543175,1955.1,1954.2,0.552]
[1771343009536,0.47543175,1954.9,1954.2,0.552]
[1771343009742,0.47543175,1954.7,1954.2,0.552]
[1771343010148,0.47543175,1954.7,1953.8,0.551]
[1771343010149,7.37106092,1954.6,1953.8,0.551]
[1771343010313,0.47543175,1954.5,1953.8,0.551]
[1771343010503,0.47543175,1954.5,1953.6,0.0011]
[1771343010712,0.47543175,1954.5,1954.3,0.0011]
[1771343011058,0.47543175,1954.3,1953.6,0.0011]
[1771343011214,1.10943175,1954.3,1954.2,0.0011]
[1771343011418,1.10943175,1954.3,1953.6,0.0011]
[1771343011621,1.75472762,1954.2,1954.0,0.0011]
[1771343011838,1.75472762,1954.2,1953.3,0.0011]
[1771343014054,1.27929587,1954.2,1953.3,0.0011]
[1771343014226,1.27929587,1954.2,1953.3,0.4713981]
[1771343014560,1.27928245,1954.3,1953.3,0.4713981]
[1771343015337,0.47543175,1954.2,1953.3,0.0011]
[1771343016016,0.634,1954.5,1953.4,1.2798198]
[1771343016257,1.91303407,1954.6,1953.4,1.7501179]
[1771343016414,1.27903407,1954.6,1953.5,0.4702981]
[1771343016749,1.27903407,1954.6,1953.6,0.551]
[1771343017536,1.75446582,1954.6,1953.6,0.551]
[1771343018542,1.75446582,1954.6,1953.6,1.83064212]
[1771343018771,0.635,1954.5,1953.6,0.551]
[1771343018976,7.84649267,1954.3,1953.3,1.28093876]
[1771343019272,0.47543175,1954.3,1953.4,0.551]
[1771343019873,0.47543175,1954.3,1953.3,0.0011]
[1771343020041,0.47543175,1954.3,1953.3,1.28098093]
[1771343020767,1.27929587,1954.2,1953.3,1.28098093]
[1771343020968,1.27929587,1954.2,1953.3,1.83198093]
[1771343022346,1.2792625,1954.3,1953.4,0.4702981]
[1771343022548,5.11654615,1954.5,1953.4,0.4702981]
[1771343022848,1.27909951,1954.5,1953.5,1.75005238]
[1771343023047,0.001,1954.5,1953.6,0.4702981]
[1771343023883,0.001,1954.5,1953.8,0.4702981]
[1771343024175,0.001,1954.5,1953.9,0.551]
[1771343024945,0.001,1954.5,1954.0,1.27942681]
[1771343027157,0.001,1954.5,1954.0,0.552]
[1771343030292,0.001,1954.5,1954.1,1.27936134]
[1771343030664,0.001,1954.5,1954.1,1.75561909]
[1771343030863,0.001,1954.5,1954.1,1.27936134]
[1771343031776,0.001,1954.5,1953.9,5.11784287]
[1771343032097,0.001,1954.5,1954.0,0.553]
[1771343032591,1.27857617,1955.3,1954.0,2.31332914]
[1771343032766,1.7751326,1955.3,1954.1,0.48090512]
[1771343032961,0.49655643,1955.2,1954.0,1.83242402]
[1771343033962,1.27857617,1955.3,1954.1,0.48090512]
[1771343034386,5.11430471,1955.4,1954.3,0.48090512]
[1771343034696,5.11430471,1955.4,1954.2,1.27929587]
[1771343034697,5.11336046,1955.7,1954.5,0.48090512]
[1771343035199,5.60991689,1955.7,1954.5,0.48090512]
[1771343035495,0.49655643,1955.6,1954.4,1.476]
[1771343035795,0.49655643,1955.4,1954.4,1.476]
[1771343036165,5.11336046,1955.7,1954.4,1.476]
[1771343036362,1.27844541,1955.5,1954.5,1.27909951]
[1771343038502,5.11378164,1955.6,1954.5,1.27909951]
[1771343038503,1.27838003,1955.6,1954.6,0.48090512]
[1771343039807,0.49655643,1955.5,1954.5,1.27909951]
[1771343040377,0.49655643,1955.5,1954.6,0.554]
[1771343040576,1.27851079,1955.4,1954.6,1.83298629]
[1771343042579,5.11404316,1955.5,1954.6,1.83298629]
[1771343042780,5.61059959,1955.5,1954.6,1.83298629]
[1771343043227,5.61059959,1955.5,1954.0,0.0011]
[1771343043228,0.49655643,1955.4,1954.2,1.27926037]
[1771343043520,0.49655643,1955.4,1954.3,0.554]
[1771343043684,0.49655643,1955.2,1954.3,0.554]
[1771343044217,11.91327168,1955.5,1954.3,0.554]
[1771343044218,5.61059959,1955.5,1954.3,0.554]
[1771343044512,0.634,1955.4,1954.3,1.03490512]
[1771343044715,5.74823909,1955.4,1954.4,1.76007008]
[1771343044914,1.27851079,1955.4,1954.4,1.76007008]
[1771343045222,1.27851079,1955.4,1954.5,0.48090512]
[1771343045427,5.11389231,1955.5,1954.5,0.48090512]
[1771343045719,1.27849993,1955.6,1954.5,0.48090512]
[1771343045720,0.634,1955.6,1954.5,0.48090512]
[1771343045903,0.49655643,1955.4,1954.4,1.27916496]
[1771343046077,0.49655643,1955.4,1954.3,5.67065984]
[1771343046283,0.49655643,1955.1,1954.3,0.554]
[1771343046513,0.49655643,1955.1,1954.3,1.83322003]
[1771343046891,0.49655643,1954.9,1954.1,0.5561]
[1771343047200,0.49655643,1954.7,1954.1,0.0011]
[1771343048314,0.001,1954.6,1954.1,0.0011]
[1771343049010,1.28003407,1954.6,1954.1,0.0011]
[1771343049180,1.7765905,1954.6,1954.1,0.0011]
[1771343049799,0.49655643,1954.5,1953.8,0.0011]
[1771343049999,0.49655643,1954.3,1953.8,0.0011]
[1771343050285,0.49655643,1954.3,1953.4,0.0011]
[1771343050988,1.27929587,1954.2,1953.4,0.0011]
[1771343051407,0.634,1954.3,1953.4,0.0011]
[1771343051727,1.27916496,1954.5,1953.4,0.0011]
[1771343052085,1.27916496,1954.5,1953.4,0.48200512]
[1771343052489,1.28003407,1954.6,1953.4,0.48200512]
[1771343052785,0.001,1954.6,1953.4,0.48200512]
[1771343053186,0.001,1954.6,1953.7,0.48090512]
[1771343053413,0.001,1954.6,1953.9,0.48090512]
[1771343053920,0.001,1954.6,1953.8,1.476]
[1771343054695,0.001,1954.6,1953.8,1.96270323]
[1771343054928,0.001,1954.6,1953.9,0.48670323]
[1771343055232,0.001,1954.6,1954.0,1.76613004]
[1771343055622,0.001,1954.6,1954.0,1.27942681]
[1771343055816,0.001,1954.6,1954.0,1.83342681]
[1771343056017,0.001,1954.6,1954.0,0.554]
[1771343056834,0.001,1954.6,1953.9,1.27945047]
[1771343057034,0.001,1954.6,1954.0,0.554]
[1771343057725,0.001,1954.6,1954.1,1.27936134]
[1771343057930,0.001,1954.6,1954.0,5.67170493]
[1771343058101,0.001,1954.6,1954.0,1.83342681]
[1771343058615,0.001,1954.6,1954.0,2.32013004]
[1771343059823,0.001,1954.6,1954.0,0.554]
[1771343060023,0.001,1954.6,1954.1,0.0011]
[1771343061432,0.46659577,1954.6,1954.1,0.0011]
[1771343061620,1.27909951,1954.5,1954.1,0.0011]
[1771343062205,0.001,1954.6,1954.1,0.0011]
[1771343063651,0.001,1954.6,1954.2,0.555]
[1771343065827,0.001,1954.6,1954.2,1.83429204]
[1771343067446,0.46559577,1955.6,1954.2,2.32099527]
[1771343067645,10.24,1956.5,1954.2,2.32099527]
[1771343067646,1.2781186,1956.0,1954.5,0.48670323]
[1771343067850,1.74378663,1955.9,1954.6,2.3207373]
[1771343068442,2.000759,1955.8,1954.6,2.3207373]
[1771343068769,0.46559577,1955.8,1954.6,2.3207373]
[1771343069070,0.46559577,1955.7,1954.6,1.83403407]
[1771343069281,0.19279577,1955.7,1954.6,1.27903407]
[1771343069444,0.19279577,1955.7,1954.7,0.556]
[1771343070079,1.27838003,1955.6,1954.8,0.556]
[1771343070289,1.47114418,1955.7,1954.8,0.556]
[1771343070494,1.2783215,1955.7,1954.8,0.556]
[1771343070650,5.11311981,1955.8,1954.8,0.556]
[1771343070651,1.27829853,1955.8,1954.8,1.04270323]
[1771343071276,1.27798793,1956.2,1954.9,0.48670323]
[1771343071952,1.27798793,1956.2,1955.0,1.7654756]
[1771343072346,1.27798793,1956.2,1955.1,0.48670323]
[1771343072541,5.5774051,1956.3,1955.0,1.27877237]
[1771343072542,1.27788033,1956.4,1955.2,0.555]
[1771343072872,1.27788033,1956.4,1955.3,0.48670323]
[1771343073379,0.46559577,1956.2,1955.2,0.555]
[1771343073952,1.27788033,1956.4,1955.3,1.27857617]
[1771343074346,11.91013728,1956.6,1955.4,0.48670323]
[1771343074347,1.27772666,1956.6,1955.4,0.48670323]
[1771343075785,1.01477479,1956.7,1955.6,0.48670323]
[1771343075987,1.01477479,1956.7,1956.0,0.48670323]
[1771343076297,1.01477479,1956.7,1956.1,1.04270323]
[1771343076474,1.01477479,1956.7,1956.2,0.48670323]
[1771343076989,1.00247478,1956.7,1956.2,0.48670323]
[1771343077146,2.378855,1957.5,1956.2,0.48670323]
[1771343077445,1.27707396,1957.6,1956.2,0.48670323]
[1771343077646,2.398139,1957.5,1956.2,0.48670323]
[1771343077846,0.46559577,1957.4,1956.1,0.556]
[1771343078049,1.74293073,1957.2,1956.1,1.83399243]
[1771343078278,0.46559577,1957.0,1956.1,0.555]
[1771343078575,7.26482429,1957.0,1956.1,0.555]
[1771343078778,0.46559577,1957.0,1956.1,0.555]
[1771343079779,0.46559577,1957.0,1955.6,1.76502983]
[1771343080077,1.27779197,1956.5,1955.7,0.555]
[1771343080659,1.74338774,1956.5,1955.7,0.555]
[1771343080865,11.86106777,1956.4,1955.3,2.32023004]
[1771343081068,0.46559577,1956.4,1955.3,1.83355553]
[1771343081273,7.26482429,1956.2,1955.3,0.555]
[1771343081472,0.46559577,1956.2,1955.3,0.555]
[1771343081658,0.46559577,1956.2,1955.1,0.555]
[1771343081852,0.46559577,1956.4,1954.9,0.554]
[1771343082052,1.27785728,1956.4,1955.1,0.48670323]
[1771343083379,0.46559577,1956.3,1955.1,0.48670323]
[1771343083587,7.26482429,1956.2,1955.0,1.83277237]
[1771343083800,0.46559577,1956.0,1955.0,0.554]
[1771343084018,1.74384507,1955.8,1954.6,0.48670323]
[1771343084298,0.629,1955.7,1954.6,1.05065906]
[1771343084466,0.629,1955.6,1954.6,1.05065906]
[1771343084867,1.2782493,1955.8,1954.6,1.05065906]
[1771343085091,1.2782493,1955.8,1955.1,0.0011]
[1771343085886,5.74133509,1956.1,1955.1,0.0011]
[1771343086255,5.11147208,1956.4,1955.1,2.33046603]
[1771343086582,0.629,1956.3,1955.1,2.33046603]
[1771343086792,0.629,1956.3,1955.1,3.25146603]
[1771343087077,0.49504653,1956.1,1955.1,1.4761]
[1771343087277,0.629,1956.3,1955.1,1.97275906]
[1771343087587,9.873249,1956.1,1955.1,1.4761]
[1771343087760,0.49504653,1956.1,1955.1,1.4761]
[1771343087954,0.63,1956.2,1955.1,1.4761]
[1771343088157,12.351592,1956.1,1955.1,1.4761]
[1771343088361,1.2781186,1956.0,1955.1,2.75479831]
[1771343088791,1.2781186,1956.0,1955.1,1.4761]
[1771343088952,1.2781186,1956.0,1955.1,2.75478101]
[1771343089890,1.2781186,1956.0,1955.1,1.83378101]
[1771343090189,1.2781186,1956.0,1955.1,0.5551]
[1771343090491,1.2781186,1956.0,1955.1,1.83379989]
[1771343091863,1.2781186,1956.0,1955.1,2.33045895]
[1771343092068,1.2781186,1956.0,1955.2,0.49665906]
[1771343092388,5.74147443,1956.3,1955.3,1.27857617]
[1771343092389,5.1120941,1956.2,1955.3,1.27857617]
[1771343092911,1.27798793,1956.2,1955.3,1.27857617]
[1771343093098,6.52725201,1956.5,1955.4,0.47605909]
[1771343093099,5.11151229,1956.4,1955.4,0.47605909]
[1771343093815,1.27766136,1956.7,1955.4,0.47605909]
[1771343093983,0.629,1956.5,1955.4,0.47605909]
[1771343094179,1.27779197,1956.5,1955.5,1.27844541]
[1771343094488,1.27779197,1956.5,1955.6,0.554]
[1771343094912,7.98569726,1956.8,1955.7,0.47605909]
[1771343094913,5.73949708,1956.8,1955.7,0.47605909]
[1771343095110,1.27759607,1956.8,1955.7,0.47605909]
[1771343095286,5.10963929,1957.1,1955.7,0.47605909]
[1771343095287,1.27740023,1957.1,1955.7,0.47605909]
[1771343095621,1.27740023,1957.1,1955.8,0.47605909]
[1771343096319,5.57259923,1957.2,1955.9,1.27818395]
[1771343096486,5.57259923,1957.2,1955.9,1.75424304]
[1771343096810,0.46323993,1957.1,1955.9,1.75424304]
[1771343097018,0.46323993,1957.1,1956.0,0.554]
[1771343097312,5.1093593,1957.2,1956.1,0.47605909]
[1771343097516,0.629,1957.1,1956.1,0.47605909]
[1771343098108,5.1093593,1957.2,1956.1,0.47605909]
[1771343098696,5.1093593,1957.2,1956.2,1.27798793]
[1771343098888,5.10920707,1957.3,1956.2,1.75404702]
[1771343099805,1.90720445,1957.4,1956.3,0.47605909]
[1771343100402,2.37044438,1957.4,1956.3,0.47605909]
[1771343100793,0.46323993,1957.1,1956.0,0.47605909]
[1771343100990,0.46323993,1956.9,1955.9,1.83324676]
[1771343101707,1.74044438,1957.4,1956.0,0.47605909]
[1771343101906,2.37044438,1957.4,1956.0,0.47605909]
[1771343102112,1.74044438,1957.4,1956.0,0.47605909]
[1771343102426,1.27815113,1957.5,1956.2,0.47605909]
[1771343102592,1.27815113,1957.5,1956.4,0.47605909]
[1771343102593,1.27815375,1957.5,1956.4,0.47605909]
[1771343102916,0.001,1957.5,1956.6,1.75378575]
[1771343103130,0.001,1957.5,1956.8,0.47605909]
[1771343103419,5.10599838,1958.6,1957.1,0.47605909]
[1771343103420,5.5689478,1958.6,1957.1,0.47605909]
[1771343103588,5.5689478,1958.6,1957.3,0.47605909]
[1771343103788,4.811727,1958.5,1957.3,0.47605909]
[1771343104015,6.1989478,1958.6,1957.3,0.47605909]
[1771343104218,7.81993719,1958.4,1957.0,0.47605909]
[1771343104424,0.63,1958.3,1957.2,0.553]
[1771343104731,6.02670787,1958.6,1957.3,0.47605909]
[1771343104732,5.73570787,1958.6,1957.3,0.47605909]
[1771343104911,5.73570787,1958.6,1957.5,0.47605909]
[1771343105137,5.10570787,1958.6,1957.5,0.47605909]
[1771343105810,1.09323993,1958.5,1957.2,0.47605909]
[1771343106146,8.948567,1958.2,1957.0,5.6628071]
[1771343106358,12.92564506,1958.6,1957.1,0.47605909]
[1771343106649,12.92564506,1958.6,1957.2,0.47605909]
[1771343106650,0.63,1958.5,1957.2,0.47605909]
[1771343106851,1.27655228,1958.4,1957.3,1.75332879]
[1771343107056,5.10578579,1958.6,1957.4,0.47605909]
[1771343107917,5.10578579,1958.6,1957.5,0.553]
[1771343109126,1.27642193,1958.7,1957.6,1.27707396]
[1771343109340,0.46323993,1958.6,1957.2,1.75332879]
[1771343109647,0.46323993,1958.4,1957.5,0.553]
[1771343109821,8.68274593,1958.3,1956.9,1.75358987]
[1771343110145,18.520336,1958.2,1957.0,0.553]
[1771343110330,0.63,1958.1,1957.0,0.553]
[1771343110643,0.46323993,1958.0,1957.0,0.553]
[1771343111050,0.63,1958.0,1957.0,1.02905909]
[1771343111546,3.528,1958.2,1957.1,1.27740023]
[1771343111750,2.395864,1958.2,1957.1,1.27740023]
[1771343111951,1.27661747,1958.3,1957.2,0.47605909]
[1771343112165,1.2765974,1958.4,1957.2,0.47605909]
[1771343112661,12.88481593,1958.3,1957.2,0.553]
[1771343112826,0.46323993,1958.3,1957.2,0.553]
[1771343113022,0.46323993,1958.2,1957.0,1.27742363]
[1771343113224,0.46323993,1958.2,1957.1,0.553]
[1771343113555,2.36998779,1958.1,1957.1,0.553]
[1771343115162,10.88543453,1958.0,1957.1,0.553]
[1771343115344,0.47847453,1957.6,1956.6,0.553]
[1771343115543,5.10803493,1957.8,1956.7,1.27766136]
[1771343115866,5.73903493,1957.8,1956.7,1.76254999]
[1771343116024,5.10759164,1957.9,1956.8,0.48488863]
[1771343116358,0.921,1958.1,1956.8,0.48488863]
[1771343116359,1.90774786,1958.1,1956.8,0.48488863]
[1771343116722,1.27672994,1958.2,1956.9,0.48488863]
[1771343116920,1.90772994,1958.2,1956.9,0.48488863]
[1771343117157,0.631,1958.1,1956.9,0.48488863]
[1771343117359,1.90772994,1958.2,1956.9,0.48488863]
[1771343117558,1.90772994,1958.2,1957.0,1.76235413]
[1771343117771,1.90772994,1958.2,1957.1,1.03788863]
[1771343117928,1.90772994,1958.2,1957.2,0.553]
[1771343118570,5.73734087,1958.4,1957.3,0.48488863]
[1771343118860,1.27763688,1958.5,1957.3,0.48488863]
[1771343119055,0.0011,1958.5,1957.5,0.48488863]
[1771343119228,0.0011,1958.5,1957.4,7.35669726]
[1771343119229,0.0011,1958.5,1957.7,0.48488863]
[1771343119431,1.27758992,1958.5,1957.8,0.553]
[1771343119631,0.0011,1958.5,1957.9,1.27687828]
[1771343120021,0.0011,1958.5,1957.8,0.553]
[1771343121364,0.0011,1958.5,1957.4,0.553]
[1771343121365,0.47847453,1958.3,1957.4,0.553]
[1771343121729,1.27668266,1958.2,1957.4,0.553]
[1771343122740,1.27668266,1958.2,1957.2,0.553]
[1771343123039,1.90768266,1958.2,1957.2,0.553]
[1771343123227,1.27668266,1958.2,1957.2,0.553]
[1771343123424,1.27668266,1958.2,1957.3,0.48488863]
[1771343123628,5.10707942,1958.5,1957.3,0.48488863]
[1771343123629,5.10637308,1958.4,1957.3,0.48488863]
[1771343123828,1.27765228,1958.5,1957.4,1.27720445]
[1771343124433,1.27765228,1958.5,1957.3,1.76212243]
[1771343124434,16.471484,1958.4,1957.3,1.76212243]
[1771343124640,11.840874,1958.4,1957.3,1.76212243]
[1771343124850,1.75612681,1958.5,1957.3,1.76212243]
[1771343125257,15.57668453,1958.4,1957.4,0.553]
[1771343125567,0.47847453,1958.4,1957.4,0.553]
[1771343125743,0.47847453,1958.3,1957.4,0.553]
[1771343125938,7.83517179,1958.1,1957.1,0.553]
[1771343126138,1.27765228,1958.5,1957.2,0.48488863]
[1771343126139,0.0011,1958.5,1957.2,0.48488863]
[1771343126452,1.27655228,1958.4,1957.2,0.48488863]
[1771343126758,0.632,1958.3,1957.2,0.48488863]
[1771343126977,7.83517179,1958.1,1957.1,0.553]
[1771343127269,0.47847453,1958.1,1957.1,0.553]
[1771343127850,0.47847453,1957.8,1956.9,0.553]
[1771343128510,0.47847453,1957.5,1956.3,0.48488863]
[1771343128774,7.35669726,1957.6,1956.1,0.553]
[1771343128775,0.47847453,1957.1,1956.1,0.553]
[1771343128951,7.98869726,1957.0,1956.1,0.553]
[1771343129483,0.632,1957.0,1956.1,0.553]
[1771343129668,0.632,1957.2,1956.1,0.553]
[1771343129875,1.2774655,1957.0,1956.1,1.83104995]
[1771343130083,1.9094655,1957.0,1956.1,1.83104773]
[1771343130284,1.9094655,1957.0,1956.1,1.83104965]
[1771343130606,1.2774655,1957.0,1956.1,1.83104965]
[1771343131097,0.632,1957.2,1956.1,2.31593828]
[1771343131763,0.47847453,1957.2,1956.1,0.553]
[1771343131965,0.47847453,1957.2,1955.9,0.9211]
[1771343131966,0.47847453,1956.9,1955.9,0.9211]
[1771343132199,0.47847453,1956.9,1955.9,2.19928152]
[1771343132500,1.11047453,1956.9,1955.9,0.9211]
[1771343132723,0.47847453,1956.8,1955.9,0.9211]
[1771343132873,0.632,1956.8,1955.9,2.19928359]
[1771343133072,0.632,1956.9,1955.9,2.19928359]
[1771343133268,5.10960094,1957.3,1956.0,0.48488863]
[1771343133269,5.10922276,1957.3,1956.0,0.48488863]
[1771343133528,5.10831063,1957.6,1956.2,0.48488863]
[1771343133838,0.632,1957.8,1956.4,0.48488863]
[1771343133990,5.1075493,1957.9,1956.6,0.48488863]
[1771343134183,5.1075493,1957.9,1956.7,0.48488863]
[1771343134378,1.27687828,1957.9,1956.9,0.48488863]
[1771343134903,1.27683266,1958.0,1956.9,0.48488863]
[1771343135119,1.27679085,1958.1,1956.9,0.48488863]
[1771343135938,0.0011,1958.5,1956.8,0.552]
[1771343135939,0.0011,1958.5,1957.3,1.2772697]
[1771343136089,7.83627179,1958.5,1957.4,1.473]
[1771343136513,0.47847453,1958.4,1957.4,1.473]
[1771343136825,0.0011,1958.5,1957.5,0.48488863]
[1771343138230,0.0011,1958.5,1957.6,1.27707396]
[1771343138608,0.47957453,1958.5,1957.2,1.76215833]
[1771343138807,0.47957453,1958.5,1957.2,1.27730596]
[1771343138808,0.47847453,1958.3,1957.2,1.27730596]
[1771343139118,16.730738,1958.4,1957.2,1.27730596]
[1771343139119,6.51098953,1958.4,1957.2,2.3142227]
[1771343139327,6.13902953,1958.3,1957.2,0.552]
[1771343139631,0.47847453,1958.3,1957.2,1.82932724]
[1771343139835,0.47847453,1958.3,1957.0,5.10982199]
[1771343140040,0.47847453,1958.3,1957.2,0.552]
[1771343140410,1.27668266,1958.2,1957.3,1.2772697]
[1771343141625,1.2776341,1958.5,1957.4,0.48488863]
[1771343141829,1.27759293,1958.5,1957.4,0.48488863]
[1771343142130,0.0011,1958.5,1957.4,0.48488863]
[1771343142427,0.0011,1958.5,1957.5,1.2771392]
[1771343143602,0.47847453,1958.4,1957.4,0.552]
[1771343144432,1.77383749,1958.3,1957.4,0.552]
[1771343144930,1.27661747,1958.3,1957.4,1.82920335]
[1771343145342,1.27658528,1958.4,1957.5,0.4591702]
[1771343146114,0.0011,1958.5,1957.5,0.4591702]
[1771343146540,0.0011,1958.5,1957.6,1.73624416]
[1771343146718,0.0011,1958.5,1957.7,0.4591702]
[1771343146920,0.0011,1958.5,1957.8,1.472]
[1771343147446,0.0011,1958.5,1957.9,0.552]
[1771343148015,0.0011,1958.5,1957.9,1.0111702]
[1771343148223,1.26593947,1959.1,1958.0,0.4591702]
[1771343148528,5.10361047,1959.4,1958.2,0.4591702]
[1771343148529,1.2759659,1959.4,1958.2,0.4591702]
[1771343148870,1.27570546,1959.7,1958.4,0.4591702]
[1771343149155,1.27570546,1959.7,1958.3,0.92]
[1771343149156,1.27570546,1959.7,1958.5,1.0111702]
[1771343149464,12.59160132,1959.9,1958.6,0.4591702]
[1771343149465,0.1320822,1959.9,1958.6,0.4591702]
[1771343149617,0.1320822,1959.9,1958.9,0.4591702]
[1771343149618,1.40766069,1959.9,1958.9,0.4591702]
[1771343149818,1.40766069,1959.9,1958.9,0.552]
[1771343150846,1.40766069,1959.9,1959.0,0.4591702]
[1771343150847,0.1320822,1959.9,1959.0,0.4591702]
[1771343151220,1.4076581,1959.9,1959.0,0.4591702]
[1771343151417,0.0011,1959.6,1959.0,0.4591702]
[1771343151846,0.1218822,1959.9,1959.2,0.4591702]
[1771343152047,0.0011,1959.7,1959.2,0.4591702]
[1771343152349,0.1218822,1959.9,1959.4,0.45188345]
[1771343152549,1.72634629,1961.4,1959.7,0.45188345]
[1771343152764,2.207621,1961.2,1959.9,0.45188345]
[1771343152964,1.27453479,1961.5,1960.0,0.45188345]
[1771343153158,1.27453479,1961.5,1960.3,0.45188345]
[1771343153389,1.27453479,1961.5,1960.5,0.45188345]
[1771343154254,6.10349993,1961.6,1960.5,0.45188345]
[1771343154255,1.00536076,1961.6,1960.6,0.45188345]